bitfinex-derivatives/quotes_BTCF0:USTF0_20210102
["timestamp","ask_amount","ask_price","bid_price","bid_amount"]
[1609579526721,4.64063158,29738.0,29737.0,0.00038228]
[1609579528825,4.64063158,29738.0,29737.0,0.00038229]
[1609579529025,4.64063158,29738.0,29737.0,0.03038229]
[1609579529426,4.63858538,29738.0,29737.0,0.03038229]
[1609579535531,4.63858538,29738.0,29734.0,1.78925613]
[1609579535932,4.63858538,29738.0,29735.0,0.00038233]
[1609579536736,4.63858538,29738.0,29735.0,0.04137726]
[1609579537536,4.63858538,29738.0,29734.0,0.04137745]
[1609579537738,4.79247538,29738.0,29736.0,0.00038233]
[1609579538041,4.79247538,29738.0,29735.0,0.00038235]
[1609579538242,4.79247538,29738.0,29731.0,0.04137931]
[1609579538645,4.79247538,29738.0,29736.0,0.00038235]
[1609579538841,4.79247538,29738.0,29732.0,0.00038235]
[1609579539042,4.79247538,29738.0,29737.0,0.00038235]
[1609579539343,4.79247538,29738.0,29733.0,0.00038235]
[1609579539744,4.79247538,29738.0,29737.0,0.00038235]
[1609579539942,4.79247538,29738.0,29734.0,0.00038235]
[1609579540142,4.79247538,29738.0,29737.0,0.00038235]
[1609579540545,4.79042904,29738.0,29735.0,0.00038235]
[1609579540744,4.79042904,29738.0,29737.0,0.00038235]
[1609579540945,4.79042904,29738.0,29736.0,0.00038235]
[1609579541345,4.79042904,29738.0,29731.0,0.04137931]
[1609579541544,4.5853,29732.0,29729.0,0.1771]
[1609579541745,0.33432158,29738.0,29726.0,2.03229249]
[1609579541946,0.33432158,29738.0,29726.0,1.93929249]
[1609579542145,1.0,29737.0,29726.0,1.75199249]
[1609579542345,4.0281,29727.0,29726.0,1.59439249]
[1609579542545,4.0281,29727.0,29726.0,0.04139088]
[1609579542944,4.20853158,29727.0,29723.0,0.04139699]
[1609579543145,4.20853158,29727.0,29726.0,0.00038252]
[1609579543345,4.20853158,29727.0,29724.0,0.00038254]
[1609579543546,0.00041017,29726.0,29723.0,0.00038254]
[1609579543747,5.2835,29725.0,29723.0,0.00038254]
[1609579543948,5.2835,29725.0,29710.0,2.23567142]
[1609579544147,5.2835,29725.0,29724.0,0.00038256]
[1609579544349,5.5733,29725.0,29724.0,0.00038256]
[1609579544550,5.5733,29725.0,29711.0,0.04140349]
[1609579544749,5.57371022,29725.0,29724.0,0.00038258]
[1609579544949,0.00041022,29724.0,29712.0,0.00038258]
[1609579545149,0.1015,29723.0,29709.0,0.04102185]
[1609579545350,5.57371022,29725.0,29709.0,0.04102185]
[1609579545552,0.6003,29714.0,29713.0,0.00038258]
[1609579545752,0.70883,29714.0,29710.0,0.04140445]
[1609579546052,0.10853,29714.0,29713.0,0.04140438]
[1609579546252,3.98443,29714.0,29711.0,0.04140364]
[1609579546654,3.98443,29714.0,29713.0,0.04140357]
[1609579546853,4.16486158,29714.0,29712.0,0.04140383]
[1609579547055,4.16486158,29714.0,29713.0,0.04140329]
[1609579547252,4.16486158,29714.0,29706.0,0.0414035]
[1609579547554,0.01,29706.0,29705.0,0.1771]
[1609579548156,0.01,29706.0,29705.0,0.2185033]
[1609579548958,0.19043158,29706.0,29705.0,0.2185033]
[1609579549557,0.19043158,29706.0,29705.0,0.16748257]
[1609579549756,0.19043158,29706.0,29705.0,0.00038257]
[1609579549955,0.19043158,29706.0,29701.0,0.04140431]
[1609579550156,0.19043158,29706.0,29701.0,0.04102174]
[1609579550356,5.40673158,29706.0,29705.0,0.00038259]
[1609579550557,5.40673158,29706.0,29702.0,0.00038259]
[1609579550756,5.40673158,29706.0,29705.0,0.00038259]
[1609579550956,5.2263,29706.0,29705.0,0.00038259]
[1609579551156,5.2263,29706.0,29703.0,0.00038259]
[1609579551357,5.2263,29706.0,29705.0,0.00038259]
[1609579551557,0.01,29705.0,29700.0,0.21410158]
[1609579552162,0.01,29705.0,29701.0,0.00038258]
[1609579552859,0.18043158,29702.0,29700.0,0.03367]
[1609579553060,0.7696,29701.0,29700.0,0.03367]
[1609579553459,0.7696,29701.0,29700.0,0.07507267]
[1609579553661,0.18043158,29702.0,29700.0,0.03367]
[1609579553861,0.17838414,29702.0,29700.0,0.03367]
[1609579554062,0.17838414,29702.0,29701.0,0.00038257]
[1609579556860,0.17838414,29702.0,29701.0,0.0003818]
[1609579558264,0.17838414,29702.0,29701.0,0.00038183]
[1609579561568,0.17838414,29702.0,29701.0,0.61338183]
[1609579561768,0.17838414,29702.0,29701.0,1.61338183]
[1609579561969,0.01,29705.0,29701.0,1.61338183]
[1609579562370,0.01,29705.0,29702.0,0.00038181]
[1609579562969,0.01,29705.0,29704.0,0.18043158]
[1609579563169,0.01,29705.0,29704.0,1.18043158]
[1609579563567,0.01,29705.0,29704.0,1.18081336]
[1609579565375,0.00795289,29705.0,29704.0,1.18081336]
[1609579565572,0.00795289,29705.0,29704.0,1.30995336]
[1609579565872,0.18043158,29718.0,29707.0,0.00204711]
[1609579566171,0.18043158,29718.0,29704.0,1.30995336]
[1609579566373,0.18043158,29718.0,29705.0,0.00038173]
[1609579567074,0.18043158,29715.0,29714.0,0.18043158]
[1609579567373,5.27843158,29715.0,29714.0,0.00038175]
[1609579567774,5.27843158,29715.0,29706.0,0.00038175]
[1609579567975,5.27843158,29715.0,29714.0,0.00038175]
[1609579568174,5.27843158,29715.0,29707.0,0.00038175]
[1609579568577,5.27843158,29715.0,29714.0,0.00038175]
[1609579568776,5.27843158,29715.0,29708.0,0.00038175]
[1609579568976,5.098,29715.0,29714.0,0.00038177]
[1609579569375,5.098,29715.0,29709.0,0.00038177]
[1609579569576,5.098,29715.0,29705.0,0.00038177]
[1609579569778,5.098,29715.0,29710.0,0.00038177]
[1609579570079,5.098,29715.0,29706.0,0.00038177]
[1609579570482,5.098,29715.0,29705.0,0.00038177]
[1609579570680,0.13988,29723.0,29707.0,0.00038177]
[1609579570882,0.13988,29723.0,29709.0,4.4147]
[1609579571083,0.18043158,29710.0,29709.0,4.4147]
[1609579571683,0.18043158,29710.0,29709.0,0.00038177]
[1609579572286,0.18043158,29710.0,29708.0,0.00038177]
[1609579572488,0.18043158,29710.0,29708.0,0.04139778]
[1609579573887,0.18043158,29710.0,29708.0,1.04139778]
[1609579574287,0.18043158,29710.0,29709.0,0.12342953]
[1609579574488,4.7262,29716.0,29709.0,0.12342953]
[1609579575090,4.7262,29716.0,29715.0,0.18043158]
[1609579575386,0.13988,29723.0,29715.0,0.22182874]
[1609579575590,0.2739,29725.0,29715.0,0.22182874]
[1609579575989,0.2739,29725.0,29716.0,0.04139716]
[1609579577090,0.18043158,29717.0,29716.0,0.04139716]
[1609579578692,0.1014,29721.0,29716.0,0.04139716]
[1609579578893,0.09935287,29721.0,29716.0,0.04139716]
[1609579579092,0.27978445,29721.0,29720.0,0.18043158]
[1609579579296,0.18043158,29721.0,29720.0,0.18043158]
[1609579579596,0.18043158,29721.0,29720.0,0.22182728]
[1609579580900,0.83833158,29721.0,29720.0,0.22182728]
[1609579582802,0.93793158,29721.0,29720.0,0.22182728]
[1609579585106,0.93793158,29721.0,29720.0,0.18081333]
[1609579585407,0.83833158,29721.0,29720.0,0.22182679]
[1609579586413,0.93823158,29721.0,29720.0,0.22182679]
[1609579588714,0.83833158,29721.0,29720.0,0.22182679]
[1609579589715,0.93903158,29721.0,29720.0,0.22182679]
[1609579591221,0.83833158,29721.0,29720.0,0.22182679]
[1609579591622,0.8362845,29721.0,29720.0,0.22182679]
[1609579596728,0.9356845,29721.0,29720.0,0.22182679]
[1609579596928,0.8362845,29721.0,29720.0,0.22182679]
[1609579597929,0.9369845,29721.0,29720.0,0.22182679]
[1609579598129,0.2790845,29721.0,29720.0,0.22182679]
[1609579598329,0.1783845,29721.0,29720.0,0.22182679]
[1609579599332,0.2790845,29721.0,29720.0,0.22182679]
[1609579599932,0.1783845,29721.0,29720.0,0.22182679]
[1609579600732,5.5854845,29721.0,29720.0,0.22182679]
[1609579601536,0.1783845,29721.0,29720.0,0.22182679]
[1609579602535,0.17633747,29721.0,29720.0,0.22182679]
[1609579632773,4.74143747,29721.0,29720.0,0.04139521]
[1609579633178,4.74143747,29721.0,29717.0,0.12342809]
[1609579633373,4.74143747,29721.0,29720.0,0.04139769]
[1609579633679,4.74143747,29721.0,29718.0,0.04139852]
[1609579633879,4.75023747,29721.0,29717.0,0.1234294]
[1609579634180,4.75023747,29721.0,29719.0,0.04139895]
[1609579634380,4.75023747,29721.0,29718.0,0.04139922]
[1609579634680,4.75023747,29721.0,29714.0,0.12343658]
[1609579635081,0.18513747,29721.0,29719.0,0.04140027]
[1609579635281,4.714,29720.0,29714.0,0.12343701]
[1609579635480,4.714,29720.0,29714.0,0.0820362]
[1609579635781,0.18043158,29715.0,29714.0,0.0820362]
[1609579635981,0.35003158,29715.0,29714.0,0.08241706]
[1609579636182,0.35003158,29715.0,29714.0,0.12343689]
[1609579637182,0.35003158,29715.0,29712.0,0.12344168]
[1609579637383,0.0994,29714.0,29711.0,0.1771]
[1609579637582,0.0994,29714.0,29713.0,0.04140113]
[1609579637782,4.9251,29714.0,29713.0,0.04140113]
[1609579637983,4.9251,29714.0,29712.0,0.04140113]
[1609579638184,4.9251,29714.0,29713.0,0.04140103]
[1609579638783,4.8257,29714.0,29712.0,0.0414002]
[1609579639989,0.0995,29713.0,29712.0,0.0414002]
[1609579640485,0.0995,29713.0,29712.0,0.04140041]
[1609579640685,4.8257,29714.0,29712.0,0.04140041]
[1609579640887,4.8257,29714.0,29712.0,0.04140065]
[1609579641687,0.1016,29713.0,29712.0,0.04140065]
[1609579642286,0.1016,29713.0,29712.0,0.04140022]
[1609579643288,1.13473158,29715.0,29712.0,0.04140022]
[1609579643789,0.35003158,29715.0,29713.0,0.18043158]
[1609579643989,0.35003158,29715.0,29713.0,4.99973158]
[1609579644189,0.0995,29714.0,29713.0,4.99973158]
[1609579644688,0.0995,29714.0,29713.0,5.12316595]
[1609579645890,0.18043158,29715.0,29713.0,5.12316595]
[1609579646090,0.18043158,29715.0,29713.0,0.30386595]
[1609579646291,0.18043158,29715.0,29714.0,0.12342895]
[1609579646690,0.18043158,29715.0,29714.0,0.04139687]
[1609579649194,0.18043158,29715.0,29714.0,0.0413995]
[1609579652997,0.18043158,29715.0,29714.0,2.08349984]
[1609579653597,0.18043158,29715.0,29714.0,2.16553689]
[1609579657505,0.18043158,29715.0,29714.0,0.12343655]
[1609579658809,0.17838422,29715.0,29714.0,2.16549495]
[1609579659308,0.17838422,29715.0,29714.0,0.12343655]
[1609579660108,0.17838422,29715.0,29714.0,2.16552672]
[1609579660609,0.0088,29721.0,29714.0,3.16552672]
[1609579660809,0.1088,29721.0,29720.0,5.2408]
[1609579661009,0.0088,29721.0,29720.0,6.2408]
[1609579661411,0.0088,29721.0,29720.0,6.28219308]
[1609579661609,0.0088,29721.0,29720.0,6.36421035]
[1609579662011,0.12387,29722.0,29720.0,5.54464193]
[1609579662212,0.1018,29721.0,29720.0,7.58600497]
[1609579662509,0.1018,29721.0,29720.0,8.46259462]
[1609579662711,0.13881,29729.0,29720.0,10.83072262]
[1609579662910,0.18043158,29734.0,29720.0,10.83072262]
[1609579663312,0.18043158,29734.0,29721.0,0.12338326]
[1609579663511,0.18043158,29734.0,29722.0,1.0]
[1609579663915,0.101,29733.0,29722.0,1.0]
[1609579664112,0.101,29733.0,29723.0,0.04138069]
[1609579664514,0.101,29733.0,29723.0,1.04138069]
[1609579664713,0.18043158,29734.0,29723.0,1.04138069]
[1609579665114,0.18043158,29734.0,29724.0,0.04137795]
[1609579665615,0.0996,29733.0,29726.0,0.6895]
[1609579665818,0.0996,29733.0,29726.0,1.6895]
[1609579666018,0.0996,29733.0,29732.0,0.18043158]
[1609579666419,0.0996,29733.0,29732.0,0.18081223]
[1609579667817,0.33432158,29738.0,29732.0,0.18081223]
[1609579668018,0.33432158,29738.0,29737.0,0.18043158]
[1609579668219,0.33432158,29738.0,29737.0,0.18081223]
[1609579671224,0.94022158,29738.0,29737.0,0.18081223]
[1609579671425,0.94022158,29738.0,29737.0,0.00038065]
[1609579671726,0.94022158,29738.0,29731.0,0.00038065]
[1609579671927,0.18043158,29733.0,29732.0,0.18043158]
[1609579672326,0.28053158,29733.0,29732.0,0.18081225]
[1609579672928,0.1001,29733.0,29732.0,0.18081225]
[1609579674829,0.18043158,29736.0,29732.0,0.18081225]
[1609579675330,0.18043158,29736.0,29733.0,0.00038067]
[1609579675931,0.18043158,29736.0,29735.0,0.18043158]
[1609579676431,0.18043158,29736.0,29735.0,0.18081225]
[1609579676934,0.18043158,29736.0,29735.0,0.18043158]
[1609579677834,0.18043158,29736.0,29730.0,5.4357]
[1609579678034,0.18043158,29732.0,29731.0,0.18043158]
[1609579678235,0.28143158,29732.0,29731.0,0.18043158]
[1609579678435,0.28143158,29732.0,29731.0,0.18081189]
[1609579678635,0.43764158,29732.0,29731.0,0.18081189]
[1609579679037,0.25721,29732.0,29731.0,0.18081189]
[1609579679237,0.25721,29732.0,29731.0,0.2218105]
[1609579679639,0.15621,29732.0,29731.0,0.2218105]
[1609579680336,0.15621,29732.0,29731.0,6.3092105]
[1609579680837,0.25681,29732.0,29731.0,6.3092105]
[1609579681237,0.25681,29732.0,29731.0,5.39120187]
[1609579681537,0.25681,29732.0,29731.0,6.39120187]
[1609579681538,0.15621,29732.0,29731.0,6.39120187]
[1609579682139,0.15621,29732.0,29731.0,0.30380187]
[1609579682540,0.15621,29732.0,29731.0,0.2218105]
[1609579682741,0.25641,29732.0,29731.0,0.2218105]
[1609579683042,0.15621,29732.0,29731.0,0.2218105]
[1609579683741,5.06802158,29738.0,29731.0,0.2218105]
[1609579683941,4.88759,29738.0,29734.0,0.18043158]
[1609579684341,4.88759,29738.0,29735.0,0.04137579]
[1609579684541,0.15389,29738.0,29735.0,0.04137579]
[1609579685043,0.1011,29742.0,29735.0,0.04137579]
[1609579685845,1.00857779,29748.0,29735.0,0.04137579]
[1609579686043,0.7012,29744.0,29738.0,0.18043158]
[1609579686444,0.8459,29744.0,29739.0,0.04137528]
[1609579686744,0.1011,29743.0,29739.0,0.04137528]
[1609579687947,0.18043158,29740.0,29739.0,0.04137528]
[1609579688147,0.28183158,29740.0,29739.0,0.04137528]
[1609579689148,0.18043158,29740.0,29739.0,0.04137528]
[1609579690150,0.27963158,29740.0,29739.0,0.04137528]
[1609579690551,0.27963158,29740.0,29736.0,0.04137671]
[1609579690751,4.8423,29737.0,29727.0,5.3888]
[1609579690952,0.10968,29737.0,29720.0,0.1771]
[1609579691152,3.9024,29727.0,29720.0,0.1771]
[1609579691554,3.9024,29727.0,29721.0,0.04137973]
[1609579691953,0.18043158,29722.0,29721.0,0.04137973]
[1609579692155,0.72473158,29722.0,29721.0,0.04137973]
[1609579693156,0.82443158,29722.0,29721.0,0.04137973]
[1609579693355,0.72473158,29722.0,29721.0,0.04137973]
[1609579694258,0.82703158,29722.0,29721.0,0.04137973]
[1609579694759,0.72473158,29722.0,29721.0,0.04137973]
[1609579695762,0.82633158,29722.0,29721.0,0.04138523]
[1609579695963,0.82633158,29722.0,29721.0,0.04138686]
[1609579696261,0.82633158,29722.0,29721.0,0.04138673]
[1609579696463,0.72473158,29722.0,29721.0,0.04138673]
[1609579697465,0.82583158,29722.0,29721.0,0.04138673]
[1609579698864,0.72473158,29722.0,29721.0,0.04138673]
[1609579702567,0.82673158,29722.0,29721.0,0.04138673]
[1609579702768,0.72473158,29722.0,29721.0,0.04138673]
[1609579703168,0.18043158,29722.0,29721.0,0.04138673]
[1609579703769,0.27993158,29722.0,29721.0,0.04138673]
[1609579703968,0.18043158,29722.0,29721.0,0.04138673]
[1609579704668,0.81973158,29722.0,29721.0,0.04138673]
[1609579705070,0.91923158,29722.0,29721.0,0.04138673]
[1609579705472,0.81973158,29722.0,29721.0,0.04138673]
[1609579707073,0.81973158,29722.0,29720.0,0.04138983]
[1609579707274,0.18043158,29722.0,29720.0,0.04138983]
[1609579707975,0.18043158,29722.0,29720.0,0.00038041]
[1609579708176,0.18043158,29722.0,29717.0,0.18043158]
[1609579708577,0.18043158,29722.0,29721.0,0.00038041]
[1609579708777,0.18043158,29722.0,29718.0,0.04139029]
[1609579708976,0.18043158,29722.0,29721.0,0.00038041]
[1609579709277,0.18043158,29722.0,29719.0,0.00038041]
[1609579709478,0.18043158,29722.0,29718.0,0.04139029]
[1609579709678,5.1208,29719.0,29718.0,0.04139029]
[1609579709878,5.1208,29719.0,29718.0,0.04100988]
[1609579710079,5.30123158,29719.0,29718.0,0.0413903]
[1609579710881,5.30123158,29719.0,29714.0,0.04139115]
[1609579711078,5.30123158,29719.0,29718.0,0.0413911]
[1609579711479,5.30123158,29719.0,29715.0,0.04139146]
[1609579711679,5.30123158,29719.0,29718.0,0.04139143]
[1609579711879,5.30123158,29719.0,29716.0,0.04139143]
[1609579712280,5.30123158,29719.0,29718.0,0.04139129]
[1609579712480,5.30123158,29719.0,29717.0,0.0413915]
[1609579712680,5.33003158,29719.0,29713.0,0.04139157]
[1609579713081,5.33003158,29719.0,29718.0,0.0413916]
[1609579713280,5.33003158,29719.0,29714.0,0.04139148]
[1609579713482,5.33003158,29719.0,29718.0,0.04139126]
[1609579713881,5.33003158,29719.0,29715.0,0.04139115]
[1609579714083,5.1496,29719.0,29718.0,0.04139104]
[1609579714283,5.1496,29719.0,29716.0,0.04139109]
[1609579714684,5.1496,29719.0,29718.0,0.04139112]
[1609579714883,5.1496,29719.0,29718.0,0.00038042]
[1609579715083,5.1496,29719.0,29718.0,0.04139146]
[1609579715384,5.1496,29719.0,29713.0,0.04139163]
[1609579716186,0.18043158,29714.0,29713.0,0.04139163]
[1609579719193,4.04323158,29714.0,29713.0,0.04139163]
[1609579728005,4.18624158,29714.0,29710.0,0.12341823]
[1609579728209,0.18043158,29711.0,29710.0,0.12341823]
[1609579728405,0.18043158,29711.0,29710.0,0.08202319]
[1609579728607,0.18043158,29711.0,29710.0,0.04140191]
[1609579729407,0.18043158,29711.0,29708.0,0.04140382]
[1609579729606,0.18043158,29711.0,29710.0,0.04140409]
[1609579729808,0.18043158,29711.0,29709.0,0.04140409]
[1609579730107,0.18043158,29711.0,29708.0,0.04140418]
[1609579730508,0.18043158,29711.0,29710.0,0.04140465]
[1609579730708,0.18043158,29711.0,29709.0,0.04140485]
[1609579730909,0.18043158,29711.0,29710.0,0.04140489]
[1609579731409,0.18043158,29711.0,29708.0,0.04140507]
[1609579731710,0.18043158,29711.0,29710.0,0.04140527]
[1609579732109,0.18043158,29711.0,29709.0,0.04140544]
[1609579732309,0.18043158,29711.0,29708.0,0.04140518]
[1609579732509,0.18043158,29711.0,29710.0,0.04140537]
[1609579732709,0.18043158,29711.0,29709.0,0.04140539]
[1609579733010,0.18043158,29711.0,29708.0,0.04140543]
[1609579733310,0.18043158,29711.0,29710.0,0.0414054]
[1609579733511,0.18043158,29711.0,29708.0,0.04140583]
[1609579733711,4.3483,29709.0,29708.0,0.04140583]
[1609579733912,4.3483,29709.0,29704.0,0.18043158]
[1609579734112,4.3483,29709.0,29708.0,0.04140584]
[1609579738818,4.3483,29709.0,29708.0,0.04140892]
[1609579741522,0.18043158,29711.0,29708.0,0.04140892]
[1609579742524,0.7243,29709.0,29708.0,0.04140892]
[1609579747231,0.7243,29709.0,29700.0,0.03367]
[1609579747431,0.18043158,29711.0,29700.0,0.03367]
[1609579747632,0.18043158,29711.0,29701.0,0.04141126]
[1609579747833,4.2191,29702.0,29701.0,0.04141126]
[1609579748131,4.38715,29702.0,29701.0,0.04141126]
[1609579748332,4.56758158,29702.0,29701.0,0.04141126]
[1609579751036,4.56758158,29702.0,29698.0,1.91386121]
[1609579751236,0.34848158,29702.0,29698.0,1.91386121]
[1609579751436,5.4295,29699.0,29698.0,1.91386121]
[1609579751837,5.4295,29699.0,29698.0,1.91424349]
[1609579752037,5.4295,29699.0,29698.0,1.51134349]
[1609579752237,5.4295,29699.0,29698.0,0.06524349]
[1609579752437,6.60993158,29699.0,29695.0,2.40126314]
[1609579752840,6.60993158,29699.0,29696.0,0.00038232]
[1609579753240,1.18043158,29699.0,29696.0,0.00038232]
[1609579753441,4.2541,29697.0,29695.0,2.29906314]
[1609579753841,1.18043158,29699.0,29695.0,2.29906314]
[1609579754443,1.18043158,29696.0,29695.0,2.29906314]
[1609579754643,1.43623158,29696.0,29695.0,2.29906314]
[1609579754844,1.43623158,29696.0,29680.0,2.85049692]
[1609579755246,1.43623158,29696.0,29681.0,0.0003824]
[1609579755449,5.3072,29682.0,29681.0,0.0003824]
[1609579756046,5.3072,29682.0,29676.0,0.0003824]
[1609579756245,0.13252,29685.0,29676.0,0.0003824]
[1609579756446,5.10233158,29677.0,29676.0,0.0003824]
[1609579756648,5.27593158,29677.0,29676.0,0.0003824]
[1609579757251,5.27593158,29677.0,29666.0,0.00038247]
[1609579757649,5.27593158,29677.0,29664.0,0.00038247]
[1609579758353,5.0955,29677.0,29671.0,0.18043158]
[1609579758751,5.0955,29677.0,29672.0,0.00038247]
[1609579760353,0.18043158,29673.0,29672.0,0.00038247]
[1609579760555,0.84543158,29673.0,29672.0,0.00038247]
[1609579761253,0.18043158,29673.0,29672.0,0.00038247]
[1609579761454,0.1736,29677.0,29672.0,0.00038247]
[1609579761654,4.8705,29682.0,29672.0,0.00038247]
[1609579762357,4.8705,29682.0,29681.0,0.18043158]
[1609579763961,0.2859,29684.0,29681.0,0.18043158]
[1609579764459,0.18043158,29682.0,29681.0,0.18043158]
[1609579765061,0.18043158,29682.0,29681.0,0.18081398]
[1609579766463,4.2516,29683.0,29681.0,0.18081398]
[1609579766667,0.2859,29684.0,29681.0,0.18081398]
[1609579766864,0.2859,29684.0,29682.0,0.00038238]
[1609579770766,0.2859,29684.0,29682.0,0.03038238]
[1609579771167,0.2859,29684.0,29683.0,0.0003824]
[1609579781475,4.991,29684.0,29683.0,0.0003824]
[1609579783279,4.99141067,29684.0,29683.0,0.0003824]
[1609579783477,4.991,29684.0,29683.0,0.0003824]
[1609579788783,4.991,29684.0,29683.0,0.04144766]
[1609579789184,4.991,29684.0,29682.0,0.07144786]
[1609579789384,4.991,29684.0,29683.0,0.04144782]
[1609579791586,0.2859,29684.0,29683.0,0.04144782]
[1609579794086,0.31295158,29685.0,29683.0,0.04144782]
[1609579794486,0.31295158,29685.0,29684.0,0.18043158]
[1609579795086,0.31295158,29685.0,29684.0,0.22187643]
[1609579800093,5.96735158,29685.0,29684.0,0.22187643]
[1609579801499,0.31295158,29685.0,29684.0,0.22187643]
[1609579809308,0.13252,29685.0,29684.0,0.22187643]
[1609579809611,4.2042,29693.0,29684.0,0.22187643]
[1609579810210,4.2042,29693.0,29685.0,0.04143784]
[1609579810411,0.2928,29695.0,29685.0,0.04143784]
[1609579811013,0.2928,29695.0,29691.0,0.18043158]
[1609579811212,0.2928,29695.0,29692.0,0.04143774]
[1609579812915,5.48793158,29693.0,29692.0,0.04143774]
[1609579814017,5.48588229,29693.0,29692.0,0.04143774]
[1609579815216,5.48588229,29693.0,29688.0,0.18043158]
[1609579815418,5.48588229,29693.0,29692.0,0.04143977]
[1609579815817,5.48588229,29693.0,29689.0,0.04143922]
[1609579816017,5.48588229,29693.0,29692.0,0.04143787]
[1609579816220,5.48588229,29693.0,29690.0,0.04143781]
[1609579816620,5.48588229,29693.0,29692.0,0.04143772]
[1609579816819,5.48588229,29693.0,29691.0,0.04143801]
[1609579817018,5.48588229,29693.0,29689.0,0.04143733]
[1609579817319,5.48588229,29693.0,29692.0,0.04143745]
[1609579817618,5.48588229,29693.0,29690.0,0.04143773]
[1609579817818,5.48588229,29693.0,29689.0,0.04143799]
[1609579818118,0.18043158,29693.0,29691.0,0.04143794]
[1609579818319,0.18043158,29693.0,29690.0,0.04143775]
[1609579818721,0.18043158,29693.0,29689.0,0.04143819]
[1609579818918,0.2928,29695.0,29691.0,0.04143756]
[1609579819120,0.2928,29695.0,29690.0,0.04143756]
[1609579819519,0.2928,29695.0,29689.0,0.04143792]
[1609579819719,4.7727,29694.0,29691.0,0.04143735]
[1609579819919,4.7727,29694.0,29690.0,0.04143809]
[1609579820319,4.7727,29694.0,29692.0,0.04143796]
[1609579820520,0.2928,29695.0,29691.0,0.04143735]
[1609579820721,0.2928,29695.0,29693.0,0.0414371]
[1609579820921,0.18043158,29694.0,29693.0,0.0414371]
[1609579821121,0.18043158,29694.0,29692.0,0.04143723]
[1609579821323,0.18043158,29694.0,29693.0,0.04143713]
[1609579821823,0.18043158,29694.0,29689.0,0.04143705]
[1609579822023,0.18043158,29694.0,29693.0,0.04143708]
[1609579822325,0.18043158,29694.0,29689.0,0.04143704]
[1609579822725,0.18043158,29694.0,29693.0,0.04143713]
[1609579822926,0.18043158,29694.0,29690.0,0.04143685]
[1609579823126,0.18043158,29691.0,29688.0,0.18043158]
[1609579823629,0.18043158,29691.0,29689.0,0.04143672]
[1609579826232,0.17838219,29691.0,29689.0,0.04143672]
[1609579828138,0.17838219,29691.0,29690.0,0.04143781]
[1609579828339,0.17838219,29691.0,29688.0,0.18043158]
[1609579828539,0.17838219,29691.0,29690.0,0.04143784]
[1609579828740,0.17838219,29691.0,29689.0,0.04143794]
[1609579828942,0.17838219,29691.0,29690.0,0.04143804]
[1609579829441,0.17838219,29691.0,29689.0,0.04143797]
[1609579832647,0.17838219,29691.0,29689.0,0.07143797]
[1609579833149,0.17838219,29691.0,29690.0,0.04143792]
[1609579833349,0.17838219,29691.0,29690.0,1.84007111]
[1609579838362,0.17633285,29691.0,29690.0,1.84007111]
[1609579846273,0.17633285,29691.0,29690.0,0.04143792]
[1609579850378,0.17633285,29691.0,29689.0,0.07143613]
[1609579850577,0.17633285,29691.0,29690.0,0.04143613]
[1609579853282,0.17633285,29691.0,29689.0,0.15354796]
[1609579853483,0.17633285,29691.0,29690.0,0.04143552]
[1609579854783,0.17633285,29691.0,29690.0,4.85973552]
[1609579854984,0.1551,29696.0,29691.0,1.0]
[1609579855184,0.16805,29702.0,29691.0,1.0]
[1609579855384,0.18043158,29707.0,29701.0,0.18043158]
[1609579855586,0.18043158,29707.0,29701.0,0.22186027]
[1609579855886,0.299,29711.0,29702.0,0.041426]
[1609579857389,0.299,29711.0,29708.0,0.18043158]
[1609579857588,0.299,29711.0,29708.0,0.84353158]
[1609579857989,0.299,29711.0,29708.0,0.84391091]
[1609579858589,0.18043158,29713.0,29708.0,1.18081091]
[1609579858789,1.13075396,29716.0,29708.0,0.18081091]
[1609579859391,0.60855436,29712.0,29708.0,0.18081091]
[1609579859590,0.60855436,29712.0,29709.0,0.00037926]
[1609579859991,0.60855436,29712.0,29711.0,4.4137]
[1609579860390,0.60855436,29712.0,29711.0,0.00037926]
[1609579860991,0.60855436,29712.0,29709.0,0.00037926]
[1609579861191,0.60855436,29712.0,29711.0,0.00037926]
[1609579861392,0.60855436,29712.0,29710.0,0.00037924]
[1609579861594,0.60855436,29712.0,29711.0,0.18043158]
[1609579861994,0.60855436,29712.0,29711.0,0.18081082]
[1609579866406,0.11948,29714.0,29711.0,0.18081082]
[1609579866706,0.11948,29714.0,29712.0,0.00037919]
[1609579866906,0.11948,29714.0,29712.0,0.73397919]
[1609579867106,1.12775175,29718.0,29712.0,0.73397919]
[1609579867306,1.12775175,29718.0,29713.0,0.00037919]
[1609579867506,1.12775175,29718.0,29717.0,0.18043158]
[1609579867807,1.12775175,29718.0,29717.0,0.18081077]
[1609579869107,1.12775175,29718.0,29717.0,0.18043158]
[1609579869307,1.12775175,29718.0,29717.0,5.72443158]
[1609579869508,1.12775175,29718.0,29717.0,5.72481076]
[1609579870009,0.0288,29719.0,29717.0,5.72481076]
[1609579870208,0.0288,29719.0,29717.0,5.72443158]
[1609579875214,0.17016,29719.0,29717.0,5.72443158]
[1609579878219,0.14136,29719.0,29717.0,5.72443158]
[1609579879720,0.14136,29719.0,29718.0,0.00037915]
[1609579880121,0.18043158,29728.0,29718.0,0.00037915]
[1609579880520,5.5317,29727.0,29718.0,0.00037915]
[1609579880731,5.65827,29727.0,29718.0,0.00037915]
[1609579881624,5.65827,29727.0,29722.0,0.18043158]
[1609579882327,0.12657,29727.0,29722.0,0.18043158]
[1609579883326,0.15537,29727.0,29722.0,0.18043158]
[1609579883624,0.18043158,29723.0,29722.0,0.18043158]
[1609579885728,0.18043158,29723.0,29722.0,0.18081076]
[1609579886828,0.18084185,29723.0,29722.0,0.18081076]
[1609579890632,0.18084185,29723.0,29722.0,0.00037918]
[1609579891133,0.18084185,29723.0,29713.0,0.04140661]
[1609579891332,0.18084185,29723.0,29722.0,0.00037918]
[1609579891633,0.18084185,29723.0,29713.0,0.04140661]
[1609579891835,0.00041027,29723.0,29719.0,0.18043158]
[1609579892034,0.00041027,29723.0,29722.0,0.00037918]
[1609579892236,0.00041027,29725.0,29720.0,0.00037918]
[1609579892436,0.00041027,29723.0,29722.0,0.00037918]
[1609579892836,0.00041027,29724.0,29721.0,0.00037918]
[1609579893036,0.00041027,29723.0,29722.0,0.00037918]
[1609579893537,0.00041027,29725.0,29720.0,0.00037918]
[1609579893739,0.00041027,29723.0,29722.0,0.00037918]
[1609579894139,0.00041027,29724.0,29721.0,0.00037918]
[1609579894340,0.00041027,29723.0,29722.0,0.00037918]
[1609579894539,0.00041027,29725.0,29720.0,0.00037918]
[1609579894940,0.00041027,29723.0,29722.0,0.00037918]
[1609579895139,0.00041027,29724.0,29721.0,0.00037918]
[1609579895339,0.00041027,29725.0,29718.0,0.00037918]